bitfinex/quotes_SOLUSD_20260108
["timestamp","ask_amount","ask_price","bid_price","bid_amount"]
[1767888854203,7.30488571,136.9,136.86,0.70548573]
[1767888854204,5.37636484,136.89,136.86,62.80548573]
[1767888854404,5.37636484,136.89,136.87,0.70548573]
[1767888854604,5.37636484,136.88,136.86,62.1]
[1767888854805,5.37636484,136.87,136.86,62.1]
[1767888855003,5.37636484,136.87,136.84,62.3]
[1767888855207,5.37636484,136.87,136.82,20.64857323]
[1767888855208,5.37636484,136.85,136.82,62.1]
[1767888855410,5.37636484,136.83,136.8,69.40962226]
[1767888856100,5.37636484,136.82,136.8,62.1]
[1767888856303,5.37636484,136.83,136.8,62.1]
[1767888856505,5.37636484,136.83,136.79,62.1]
[1767888856717,5.37636484,136.83,136.79,69.4101655]
[1767888857925,5.37636484,136.81,136.78,62.1]
[1767888858110,5.37636484,136.82,136.78,69.41092674]
[1767888858505,5.37636484,136.81,136.77,0.2]
[1767888858710,5.37636484,136.8,136.77,0.2]
[1767888859112,5.37636484,136.8,136.77,0.90548573]
[1767888859831,5.37636484,136.8,136.77,0.2]
[1767888860131,5.37636484,136.79,136.77,0.2]
[1767888861118,5.37636484,136.8,136.78,0.70548573]
[1767888861434,5.37636484,136.82,136.78,0.70548573]
[1767888861907,12.68483915,136.83,136.79,0.70548573]
[1767888862424,5.37636484,136.83,136.79,0.70548573]
[1767888862627,7.30744466,136.85,136.8,0.70548573]
[1767888862832,5.37636484,136.84,136.8,62.80548573]
[1767888863137,7.30744466,136.85,136.8,62.80548573]
[1767888863336,5.37636484,136.83,136.8,62.80548573]
[1767888863544,7.30744466,136.85,136.8,62.80548573]
[1767888863718,5.37636484,136.83,136.8,0.70548573]
[1767888865029,7.30818178,136.84,136.78,69.41084951]
[1767888865233,5.37636484,136.81,136.78,0.70548573]
[1767888865530,5.37636484,136.79,136.77,0.2]
[1767888865747,5.37636484,136.79,136.77,0.90548573]
[1767888866031,0.28432314,136.83,136.77,0.90548573]
[1767888866351,5.37636484,136.8,136.77,0.90548573]
[1767888866935,12.68690269,136.79,136.77,0.90548573]
[1767888867606,5.37636484,136.78,136.75,0.90548573]
[1767888868323,5.37636484,136.77,136.75,0.90548573]
[1767888869129,5.37636484,136.77,136.75,0.2]
[1767888870016,7.31015817,136.8,136.75,8.21804017]
[1767888870223,7.31015817,136.8,136.75,0.90548573]
[1767888870421,5.37636484,136.79,136.75,0.90548573]
[1767888871208,12.68695034,136.79,136.75,0.90548573]
[1767888872227,5.37636484,136.79,136.75,8.21809193]
[1767888872739,5.37636484,136.79,136.76,0.67264635]
[1767888873039,5.37636484,136.78,136.76,0.67264635]
[1767888873824,5.37636484,136.78,136.75,0.87264635]
[1767888874342,5.37636484,136.78,136.76,0.67264635]
[1767888874539,0.14216157,136.82,136.78,0.67264635]
[1767888874540,5.37636484,136.82,136.78,0.67264635]
[1767888874921,5.37636484,136.83,136.79,0.67264635]
[1767888875121,12.68470048,136.84,136.8,0.67264635]
[1767888875537,7.30833564,136.84,136.8,0.67264635]
[1767888875846,5.37636484,136.83,136.8,0.67264635]
[1767888876027,5.37636484,136.84,136.8,0.67264635]
[1767888876650,2.19080019,136.87,136.83,0.67264635]
[1767888876936,2.19080019,136.86,136.83,0.67264635]
[1767888877319,9.49802904,136.86,136.83,0.67264635]
[1767888878011,2.19080019,136.85,136.83,0.67264635]
[1767888878216,7.30722885,136.86,136.8,20.64964111]
[1767888878217,2.19080019,136.84,136.81,0.67264635]
[1767888878714,5.37839906,136.85,136.81,0.67264635]
[1767888879742,0.28432314,136.86,136.83,0.67264635]
[1767888879925,4.963761,136.93,136.83,0.67264635]
[1767888879926,12.68420764,136.88,136.84,0.67264635]
[1767888880931,5.37839906,136.87,136.84,0.67264635]
[1767888882522,5.37839906,136.86,136.82,0.67264635]
[1767888882718,5.37839906,136.85,136.82,0.67264635]
[1767888884126,12.68568825,136.85,136.82,0.67264635]
[1767888884324,5.37839906,136.83,136.8,13.34]
[1767888884641,5.37839906,136.83,136.79,0.67264635]
[1767888884836,7.30887297,136.82,136.78,6.05104541]
[1767888885038,7.30887297,136.82,136.79,0.67264635]
[1767888885347,12.68727203,136.82,136.78,0.67264635]
[1767888885846,5.37839906,136.81,136.77,0.67264635]
[1767888886048,0.28432314,136.81,136.77,0.67264635]
[1767888886250,5.37839906,136.79,136.75,18.91839906]
[1767888886454,5.37839906,136.79,136.75,13.54]
[1767888886657,8.74804064,136.79,136.75,13.54]
[1767888886855,7.31101038,136.78,136.75,0.87264635]
[1767888887046,16.05905102,136.78,136.75,0.87264635]
[1767888887732,16.05905102,136.78,136.75,0.2]
[1767888887930,8.74804064,136.76,136.71,14.01264635]
[1767888888141,8.74804064,136.76,136.71,22.76068699]
[1767888888342,9.03236378,136.77,136.72,0.67264635]
[1767888888543,0.28432314,136.77,136.72,0.67264635]
[1767888888729,9.03236378,136.77,136.72,0.67264635]
[1767888889257,7.31207955,136.76,136.73,0.67264635]
[1767888890147,9.03236378,136.77,136.73,0.67264635]
[1767888890350,0.28432314,136.77,136.74,0.67264635]
[1767888890531,0.28432314,136.79,136.75,0.67264635]
[1767888890736,16.34283969,136.79,136.75,0.67264635]
[1767888890955,8.74804064,136.78,136.73,0.67264635]
[1767888891137,8.74804064,136.78,136.74,0.67264635]
[1767888891337,8.74804064,136.77,136.74,0.67264635]
[1767888892330,16.05969059,136.77,136.74,0.67264635]
[1767888893061,16.05921607,136.78,136.74,0.67264635]
[1767888893759,8.74804064,136.76,136.74,0.67264635]
[1767888894275,8.74804064,136.77,136.74,0.67264635]
[1767888894743,7.31117543,136.78,136.74,0.67264635]
[1767888894942,8.74804064,136.77,136.74,0.67264635]
[1767888895455,16.05966555,136.77,136.74,0.67264635]
[1767888895846,8.74804064,136.76,136.74,0.67264635]
[1767888897160,8.74804064,136.75,136.74,0.67264635]
[1767888897337,8.74804064,136.75,136.72,0.67264635]
[1767888897652,8.74804064,136.73,136.72,0.67264635]
[1767888897833,25.59239856,136.76,136.72,0.67264635]
[1767888897834,8.74804064,136.74,136.72,0.67264635]
[1767888898035,8.74804064,136.73,136.72,0.67264635]
[1767888898958,8.74804064,136.73,136.7,0.67264635]
[1767888899266,16.061896,136.73,136.69,0.67264635]
[1767888899563,8.74804064,136.73,136.69,0.67264635]
[1767888899937,8.74804064,136.74,136.7,0.67264635]
[1767888901654,8.74804064,136.74,136.7,7.98784784]
[1767888901849,8.74804064,136.74,136.71,0.67264635]
[1767888902567,16.06125335,136.74,136.71,0.67264635]
[1767888902738,9.03236378,136.72,136.69,0.71215151]
[1767888903137,7.31321271,136.74,136.7,0.71215151]
[1767888903341,7.31321271,136.74,136.71,0.71215151]
[1767888903867,16.06125335,136.74,136.71,0.71215151]
[1767888904041,16.06125335,136.74,136.7,0.71215151]
[1767888904462,16.06125335,136.74,136.7,62.81215151]
[1767888904643,9.03236378,136.73,136.69,62.81215151]
[1767888905153,9.03236378,136.73,136.65,20.61288858]
[1767888905154,8.74804064,136.7,136.65,20.61288858]
[1767888905461,25.59608531,136.74,136.66,0.67531754]
[1767888905462,8.74804064,136.69,136.66,0.67531754]
[1767888905759,7.59985263,136.7,136.66,0.67531754]
[1767888905937,16.34789327,136.7,136.66,0.67531754]
[1767888906862,7.59985263,136.7,136.67,0.67531754]
[1767888907164,0.28432314,136.7,136.67,0.67531754]
[1767888907466,0.14216157,136.73,136.7,0.67531754]
[1767888907658,7.45611562,136.73,136.7,0.67531754]
[1767888907964,16.20415626,136.73,136.7,0.67531754]
[1767888908345,7.31324398,136.74,136.71,0.67531754]
[1767888908547,16.06128462,136.74,136.71,0.67531754]
[1767888908771,8.89020221,136.73,136.69,0.67531754]
[1767888909555,9.03236378,136.73,136.69,0.67531754]
[1767888909757,7.59822535,136.73,136.71,0.67531754]
[1767888909956,7.31333023,136.74,136.71,0.67531754]
[1767888910152,0.14216157,136.73,136.71,0.67531754]
[1767888910357,0.28432314,136.73,136.71,0.67531754]
[1767888911568,36.54436485,136.82,136.73,0.67531754]
[1767888911739,16.05958556,136.77,136.72,8.74804064]
[1767888911938,8.74804064,136.76,136.7,7.31500785]
[1767888912151,0.03147933,136.75,136.71,8.74804064]
[1767888913357,0.03147933,136.75,136.72,8.74804064]
[1767888913854,0.03147933,136.71,136.65,8.74804064]
[1767888914062,8.74804064,136.7,136.67,0.67531754]
[1767888914263,8.74804064,136.71,136.67,0.67531754]
[1767888914567,8.74804064,136.7,136.67,0.67531754]
[1767888914865,0.28432314,136.69,136.64,8.74804064]
[1767888915066,22.10804064,136.7,136.65,8.74804064]
[1767888915268,0.28432314,136.69,136.63,0.1]
[1767888915459,9.03236378,136.69,136.63,0.1]
[1767888915656,9.03236378,136.69,136.64,8.74804064]
[1767888915858,16.34862681,136.69,136.64,8.74804064]
[1767888916068,7.60058617,136.69,136.65,8.74804064]
[1767888916570,16.34862681,136.69,136.64,8.74804064]
[1767888916762,16.34862681,136.69,136.64,9.42335818]
[1767888916957,7.31549101,136.7,136.66,0.67531754]
[1767888917169,16.06353165,136.7,136.66,0.67531754]
[1767888917371,7.31549101,136.7,136.67,0.67531754]
[1767888919677,16.06297195,136.71,136.67,0.67531754]
[1767888919866,16.06297195,136.71,136.67,62.77531754]
[1767888920667,7.59873253,136.72,136.68,9.42335818]
[1767888920874,7.31440939,136.72,136.68,71.52335818]
[1767888921069,16.06245003,136.72,136.68,62.77531754]
[1767888921576,16.06188692,136.73,136.69,0.67531754]
[1767888923072,7.31384628,136.73,136.69,0.67531754]
[1767888923280,16.06188692,136.73,136.69,0.67531754]
[1767888924059,7.31384628,136.73,136.69,9.42335818]
[1767888924264,16.06188692,136.73,136.69,0.67531754]
[1767888924666,0.69353636,136.72,136.68,78.16437718]
[1767888924979,16.06188692,136.73,136.69,0.67531754]
[1767888925282,8.74804064,136.75,136.71,0.67531754]
[1767888925782,16.06115911,136.75,136.71,0.67531754]
[1767888926368,8.74804064,136.77,136.73,0.67531754]
[1767888926564,0.28432314,136.76,136.73,0.67531754]
[1767888926769,0.14216157,136.76,136.73,0.67531754]
[1767888927385,0.28432314,136.76,136.73,0.67531754]
[1767888927784,7.59654211,136.76,136.73,0.67531754]
[1767888928589,8.74804064,136.74,136.69,76.13531754]
[1767888928772,8.74804064,136.73,136.69,14.03531754]
[1767888929286,8.74804064,136.74,136.7,0.67531754]
[1767888929491,8.74804064,136.71,136.68,62.77531754]
[1767888929693,0.69353636,136.73,136.68,9.42335818]
[1767888929694,9.441577,136.73,136.68,9.42335818]
[1767888929994,16.06192499,136.73,136.69,0.67531754]
[1767888930198,8.74804064,136.72,136.69,0.67531754]
[1767888930490,8.86016854,136.7,136.66,62.1]
[1767888930690,8.74804064,136.68,136.64,62.77531754]
[1767888930897,8.74804064,136.69,136.65,0.67531754]
[1767888931593,8.74804064,136.66,136.63,25.39398023]
[1767888931775,8.74804064,136.65,136.63,0.1]
[1767888931980,7.31807592,136.65,136.63,0.1]
[1767888932191,16.06611656,136.65,136.63,0.1]
[1767888932384,8.74804064,136.64,136.63,0.1]
[1767888933781,16.06654181,136.64,136.63,0.1]
[1767888934577,7.31817106,136.65,136.63,0.1]
[1767888934875,16.0662117,136.65,136.63,0.1]
[1767888935499,8.74804064,136.64,136.63,0.1]
[1767888936075,16.06654181,136.64,136.59,0.67561855]
[1767888936396,7.31850117,136.64,136.6,0.67561855]
[1767888936585,16.06654181,136.64,136.6,0.67561855]
[1767888939192,16.06654181,136.64,136.61,0.67561855]
[1767888939193,0.28432314,136.64,136.61,0.67561855]
[1767888939494,9.03236378,136.64,136.61,0.67561855]
[1767888940081,8.74804064,136.63,136.61,0.67561855]
[1767888941286,16.35105889,136.64,136.61,0.67561855]
[1767888941485,9.03236378,136.64,136.61,0.67561855]
[1767888942395,16.3509734,136.64,136.61,0.67561855]
[1767888942590,7.60293276,136.64,136.61,0.67561855]
[1767888942778,0.28432314,136.62,136.59,9.42365919]
[1767888942975,0.28432314,136.62,136.59,0.67561855]
[1767888944207,0.28432314,136.62,136.58,0.1]
[1767888944392,9.03236378,136.62,136.58,0.77561855]
[1767888944788,16.35208517,136.62,136.58,0.77561855]
[1767888946498,5.39929793,136.59,136.55,25.29398023]
[1767888946685,0.28432314,136.6,136.55,25.96959878]
[1767888946889,5.39929793,136.59,136.55,25.96959878]
[1767888947213,12.7205955,136.59,136.55,25.96959878]
[1767888947387,12.7205955,136.59,136.56,0.67561855]
[1767888947587,5.39929793,136.58,136.56,0.67561855]
[1767888947787,5.39929793,136.57,136.55,25.29398023]
[1767888948195,5.39929793,136.56,136.53,0.67561855]
[1767888948396,5.39929793,136.56,136.53,62.77561855]
[1767888948605,5.39929793,136.55,136.53,62.77561855]
[1767888948904,13.36,136.58,136.53,62.77561855]
[1767888948905,5.39929793,136.56,136.53,62.77561855]
[1767888949112,0.10699404,136.54,136.51,76.83752856]
[1767888949315,5.39929793,136.53,136.51,14.23772573]
[1767888950509,5.39929793,136.54,136.51,14.23772573]
[1767888950713,5.39929793,136.54,136.52,0.67561855]
[1767888951014,5.39929793,136.56,136.52,0.67561855]
[1767888951314,5.39929793,136.53,136.51,14.91334428]
[1767888951900,5.39929793,136.52,136.49,0.2]
[1767888952212,5.39929793,136.5,136.49,0.2]
[1767888952412,5.3692979,136.5,136.49,0.2]
[1767888952610,5.3692979,136.5,136.49,1e-08]
[1767888954416,5.3692979,136.5,136.47,0.67561855]
[1767888954417,5.39929793,136.49,136.47,0.67561855]
[1767888955117,5.39929793,136.49,136.45,7.3282985]
[1767888955699,0.28432314,136.5,136.45,0.67561855]
[1767888955894,5.39929793,136.48,136.45,0.67561855]
[1767888956206,5.39929793,136.47,136.45,0.67561855]
[1767888957021,5.39929793,136.46,136.44,0.2]
[1767888957312,5.39929793,136.47,136.45,0.67561855]
[1767888957518,5.39929793,136.48,136.45,0.67561855]
[1767888958019,13.64432314,136.49,136.45,0.67561855]
[1767888958319,5.39929793,136.48,136.45,0.67561855]
[1767888960419,5.39929793,136.47,136.45,0.67561855]
[1767888960721,2.20253477,136.48,136.45,0.67561855]
[1767888961113,2.20253477,136.46,136.45,0.67561855]
[1767888961301,2.17253475,136.46,136.45,0.67561855]
[1767888961502,2.17253475,136.46,136.41,20.52883035]
[1767888961503,9.50082018,136.46,136.41,0.67561855]
[1767888961704,2.20253477,136.42,136.39,0.87561855]
[1767888961906,2.20253477,136.42,136.4,0.67561855]
[1767888962115,2.20253477,136.43,136.4,0.67561855]
[1767888962512,5.41139046,136.44,136.4,0.67561855]
[1767888963432,5.41139046,136.43,136.4,0.67561855]
[1767888963829,0.14216157,136.55,136.43,0.72325112]
[1767888964014,5.41139046,136.47,136.43,0.72325112]
[1767888964212,13.38,136.5,136.43,0.72325112]
[1767888964519,5.41139046,136.46,136.43,0.72325112]
[1767888964725,5.41139046,136.47,136.43,0.72325112]
[1767888964927,5.41139046,136.46,136.43,0.72325112]
[1767888965517,5.41139046,136.45,136.43,0.72325112]
[1767888966214,5.41139046,136.44,136.43,0.72325112]
[1767888967107,5.41139046,136.45,136.43,0.72325112]
[1767888967637,5.41139046,136.46,136.43,0.72325112]
[1767888968130,5.41139046,136.44,136.43,0.72325112]
[1767888969624,7.32863921,136.46,136.43,0.72325112]
[1767888969838,5.41139046,136.46,136.43,0.72325112]
[1767888970417,5.41139046,136.47,136.43,0.72325112]
[1767888970615,5.6957136,136.47,136.43,0.72325112]
[1767888971121,5.41139046,136.46,136.43,0.72325112]
[1767888971320,5.41139046,136.45,136.43,0.72325112]
[1767888972545,5.41139046,136.45,136.41,7.33072752]
[1767888972717,5.41139046,136.45,136.41,7.99852295]
[1767888972916,5.41139046,136.45,136.42,0.66779543]
[1767888973332,5.41139046,136.44,136.42,0.66779543]
[1767888973524,5.41139046,136.43,136.4,0.66779543]
[1767888974238,7.32815477,136.46,136.4,0.66779543]
[1767888974445,18.31721364,136.49,136.42,0.66779543]
[1767888974625,5.41139046,136.47,136.42,0.66779543]
[1767888975123,0.14216157,136.48,136.42,0.66779543]
[1767888975317,5.41139046,136.46,136.42,0.66779543]
[1767888975518,5.41139046,136.47,136.43,0.66779543]
[1767888975832,5.41139046,136.48,136.44,0.66779543]
[1767888976047,5.41139046,136.47,136.44,0.66779543]
[1767888976417,0.28432314,136.49,136.44,0.66779543]
[1767888976644,5.41139046,136.47,136.44,0.66779543]
[1767888977455,1.73461228,162.75,136.47,0.66779543]
[1767888977456,36.61258426,136.57,136.47,0.66779543]
[1767888977745,5.41139046,136.53,136.49,0.66779543]
[1767888977946,5.41139046,136.56,136.52,0.66779543]
[1767888978247,5.41139046,136.55,136.52,0.66779543]
[1767888978429,5.41139046,136.54,136.52,0.66779543]
[1767888978619,5.41139046,136.55,136.52,0.66779543]
[1767888979454,5.41139046,136.56,136.53,0.66779543]
[1767888980631,5.41139046,136.57,136.54,0.66779543]
[1767888980943,5.41139046,136.56,136.52,7.99251608]
[1767888981325,5.41139046,136.56,136.53,0.66779543]
[1767888982743,5.41139046,136.55,136.51,0.66779543]
[1767888982927,5.41139046,136.54,136.51,0.66779543]
[1767888983127,5.41139046,136.55,136.52,0.66779543]
[1767888983854,5.41139046,136.53,136.5,0.66779543]
[1767888984023,5.41139046,136.52,136.5,0.66779543]
[1767888984928,13.38,136.56,136.5,0.66779543]
[1767888984929,5.41139046,136.53,136.51,0.66779543]
[1767888985138,5.41139046,136.54,136.51,0.66779543]
[1767888985523,20.70300814,136.56,136.51,0.66779543]
[1767888985524,5.41139046,136.56,136.51,0.66779543]
[1767888985724,5.41139046,136.55,136.52,0.66779543]
[1767888985928,5.41139046,136.53,136.51,62.1]
[1767888986226,5.41139046,136.52,136.51,57.35640497]
[1767888986620,5.41139046,136.53,136.51,57.35640497]
[1767888988630,5.41139046,136.52,136.48,62.76779543]
[1767888988827,39.29595989,136.55,136.49,0.66779543]
[1767888989021,5.41139046,136.5,136.49,0.66779543]
[1767888991348,5.41139046,136.5,136.47,62.76779543]
[1767888991529,5.41139046,136.48,136.45,70.09627059]
[1767888991737,5.41139046,136.48,136.46,7.99580836]
[1767888992349,5.41139046,136.47,136.46,0.66779543]
[1767888993855,5.41139046,136.47,136.45,62.78806966]
[1767888994438,5.41139046,136.46,136.45,62.1]
[1767888994649,5.41139046,136.46,136.43,0.68806966]
[1767888994861,5.41139046,136.45,136.43,0.68806966]
[1767888995064,7.32726638,136.48,136.43,0.68806966]
[1767888995243,5.41139046,136.45,136.43,0.68806966]
[1767888995446,7.32726638,136.48,136.43,8.01768025]
[1767888995651,5.41139046,136.46,136.43,8.01768025]
[1767888995959,7.32726638,136.48,136.43,8.01768025]
[1767888995960,5.41139046,136.48,136.44,0.68806966]
[1767888996157,0.28432314,136.5,136.44,0.68806966]
[1767888996358,5.41139046,136.48,136.44,0.68806966]
[1767888996555,0.28432314,136.5,136.44,0.68806966]
[1767888996859,7.61039356,136.5,136.45,0.68806966]
[1767888997044,5.41139046,136.46,136.43,0.68806966]
[1767888997251,5.41139046,136.45,136.43,0.68806966]
[1767888997563,5.41139046,136.45,136.43,62.78806966]
[1767888997858,5.41139046,136.44,136.41,0.68806966]
[1767888998058,0.28432314,136.49,136.41,0.68806966]
[1767888998359,5.41139046,136.43,136.41,0.68806966]
[1767888998564,5.41139046,136.42,136.39,0.88806966]
[1767888998867,7.32997525,136.43,136.39,0.88806966]
[1767888999160,5.41139046,136.41,136.39,8.21984207]
[1767888999364,5.41139046,136.41,136.39,0.88806966]
[1767888999950,5.41139046,136.41,136.39,8.21990706]
[1767889000668,5.41139046,136.42,136.39,8.21990706]
[1767889000878,8.32072092,136.44,136.39,8.21990706]
[1767889001173,5.41139046,136.42,136.39,8.21990706]
[1767889001950,5.41139046,136.44,136.4,0.68806966]
[1767889002157,5.41139046,136.45,136.42,0.68806966]
[1767889002372,0.26004356,136.47,136.42,0.68806966]
[1767889002672,0.71292132,136.49,136.44,0.68806966]
[1767889002851,8.03845083,136.51,136.44,0.68806966]
[1767889003051,5.41139046,136.49,136.45,0.68806966]
[1767889003377,5.41139046,136.48,136.45,0.68806966]
[1767889003781,5.41139046,136.49,136.45,0.68806966]
[1767889003976,5.41139046,136.49,136.45,62.78806966]
[1767889004773,5.41139046,136.48,136.45,62.1]
[1767889004979,5.41139046,136.46,136.45,62.1]
[1767889005281,0.28432314,136.45,136.4,0.68806966]
[1767889005471,5.41139046,136.43,136.4,0.68806966]
[1767889005776,5.41139046,136.42,136.4,0.68806966]
[1767889007479,0.28432314,136.45,136.4,0.68806966]
[1767889007786,5.41139046,136.44,136.4,0.68806966]
[1767889008660,8.79226,136.44,136.4,0.68806966]
[1767889009466,8.79226,136.45,136.41,0.68806966]
[1767889010076,0.02377288,136.49,136.42,0.68806966]
[1767889010277,8.79226,136.45,136.42,0.68806966]
[1767889010671,8.79226,136.43,136.4,0.68806966]
[1767889010884,8.79226,136.44,136.4,0.68806966]
[1767889011080,8.79226,136.45,136.41,0.68806966]
[1767889011379,8.79226,136.45,136.41,9.48032966]
[1767889011698,8.79226,136.46,136.43,0.68806966]
[1767889012871,0.02377288,136.53,136.46,0.68806966]
[1767889013071,4.8815909,136.52,136.46,0.68806966]
[1767889013277,8.79226,136.49,136.46,0.68806966]
[1767889013695,0.02377288,136.52,136.46,0.68806966]
[1767889013983,8.79226,136.51,136.47,0.68806966]
[1767889014286,8.79226,136.53,136.48,0.68806966]
[1767889014491,8.79226,136.52,136.49,0.68806966]
[1767889014675,8.79226,136.53,136.49,0.68806966]
[1767889014985,8.79226,136.54,136.5,0.68806966]
[1767889015170,0.02377288,136.56,136.5,0.68806966]
[1767889015365,8.79226,136.53,136.5,0.68806966]
[1767889015568,4.963761,136.6,136.49,8.79226]
[1767889015569,0.22377288,136.65,136.54,0.68806966]
[1767889015767,0.2,136.65,136.61,9.48032966]
[1767889016084,8.99226,136.65,136.61,0.68806966]
[1767889016281,8.79226,136.63,136.61,0.68806966]
[1767889016486,8.79226,136.64,136.61,0.68806966]
[1767889016871,0.2,136.65,136.62,0.68806966]
[1767889017493,8.99226,136.65,136.62,0.68806966]
[1767889017789,8.99226,136.67,136.63,0.68806966]
[1767889017969,8.99226,136.67,136.64,0.68806966]
[1767889018284,0.2,136.67,136.64,0.68806966]
[1767889018583,0.48432314,136.7,136.65,0.68806966]
[1767889018584,0.2,136.7,136.65,0.68806966]
[1767889019185,8.79226,136.69,136.65,0.68806966]
[1767889019680,8.99226,136.7,136.66,0.68806966]
[1767889020164,0.2,136.7,136.66,0.68806966]
[1767889020369,8.79226,136.68,136.66,0.68806966]
[1767889020675,8.79226,136.67,136.64,0.68806966]
[1767889020860,8.79226,136.66,136.64,0.68806966]
[1767889021060,8.79226,136.67,136.64,0.68806966]
[1767889021665,8.79226,136.66,136.64,0.68806966]
[1767889022284,8.79226,136.65,136.62,0.69293257]
[1767889022594,8.79226,136.64,136.62,0.69293257]
[1767889023076,0.65418916,136.67,136.59,0.30122712]
[1767889023281,8.79226,136.64,136.59,9.09348712]
[1767889023999,8.79226,136.63,136.59,0.30122712]
[1767889024371,8.79226,136.63,136.58,8.79226]
[1767889024593,8.79226,136.62,136.57,83.86526596]
[1767889025087,8.79226,136.62,136.57,75.07300596]
[1767889025293,0.65418916,136.63,136.59,8.79226]
[1767889025482,0.71003966,136.65,136.6,8.79226]
[1767889025682,0.71003966,136.65,136.6,61.39177884]
[1767889025870,8.79226,136.64,136.6,61.39177884]
[1767889026593,0.71003966,136.65,136.6,70.18403884]
[1767889026794,0.71003966,136.69,136.61,9.09348712]
[1767889027095,8.79226,136.68,136.64,8.79226]
[1767889027306,9.50229966,136.68,136.63,9.09348712]
[1767889027902,0.71003966,136.69,136.63,0.30122712]
[1767889028077,9.50229966,136.69,136.64,8.79226]
[1767889029207,9.50229966,136.68,136.61,75.05300596]
[1767889029418,9.50229966,136.68,136.63,8.79226]
[1767889029577,8.79226,136.68,136.63,9.47614057]
[1767889029907,8.79226,136.68,136.64,7.31850117]
[1767889030970,8.79226,136.67,136.62,77.50318236]
[1767889031176,8.79226,136.66,136.63,7.31900603]
[1767889031375,8.79226,136.67,136.63,7.31900603]
[1767889031801,9.50229966,136.67,136.63,7.31900603]
[1767889033071,8.79226,136.66,136.62,77.50342398]
[1767889033795,9.50229966,136.67,136.62,78.18730455]
[1767889033973,0.71003966,136.69,136.63,9.47614057]
[1767889034180,9.50229966,136.69,136.64,9.47614057]
[1767889035182,0.71003966,136.69,136.65,8.79226]
[1767889036115,0.71003966,136.68,136.65,7.3179656]
[1767889036290,8.79226,136.68,136.64,69.39397251]
[1767889037892,8.99226,136.7,136.66,8.79226]
[1767889038286,0.2,136.7,136.66,8.79226]
[1767889038602,8.99226,136.7,136.65,0.68388057]
[1767889038799,0.2,136.7,136.66,8.79226]
[1767889038982,0.2,136.7,136.67,8.79226]
[1767889040201,0.2,136.7,136.66,78.18507296]
[1767889040804,8.79226,136.72,136.67,9.47614057]
[1767889041103,8.79226,136.72,136.68,7.31635937]
[1767889041287,0.71003966,136.72,136.68,16.10861937]
[1767889041695,0.71003966,136.74,136.69,9.47614057]
[1767889041887,9.50229966,136.74,136.69,9.47614057]
[1767889042505,8.79226,136.75,136.7,9.47614057]
[1767889042703,9.50229966,136.76,136.71,8.79226]
[1767889043006,9.50229966,136.76,136.68,25.60725781]
[1767889043007,9.50229966,136.73,136.68,30.15249994]
[1767889043307,9.50229966,136.72,136.68,7.31635937]
[1767889044211,8.79226,136.73,136.69,0.68388057]
[1767889044388,8.79226,136.73,136.69,9.47614057]
[1767889044902,9.50229966,136.74,136.69,9.47614057]
[1767889045109,0.71003966,136.72,136.69,7.31561924]
[1767889045320,9.50229966,136.72,136.68,7.31612872]
[1767889045685,0.71003966,136.72,136.68,16.10838872]
[1767889047383,0.71003966,136.72,136.69,7.31563125]
[1767889048597,8.79226,136.73,136.69,7.31563125]
[1767889048906,9.50229966,136.74,136.69,16.10789125]
[1767889049306,0.71003966,136.73,136.69,16.10789125]
[1767889049916,8.30658444,136.76,136.71,0.68388057]
[1767889050219,0.71003966,136.76,136.72,8.79226]
[1767889050995,16.81441172,136.76,136.72,8.79226]
[1767889051195,9.50229966,136.76,136.71,9.47614057]
[1767889051821,9.50229966,136.75,136.71,9.47614057]
[1767889052023,9.50229966,136.75,136.7,8.79226]
[1767889052227,9.50229966,136.75,136.71,7.31475385]
[1767889052822,9.50105404,136.72,136.68,0.67474368]
[1767889053405,0.70879404,136.72,136.68,0.67474368]
[1767889053723,0.70879404,136.72,136.69,7.31548799]
[1767889054697,9.50105404,136.72,136.69,7.31548799]
[1767889055925,9.50105404,136.71,136.67,7.31665422]
[1767889056296,8.79226,136.72,136.68,7.31623154]
[1767889056802,9.50105404,136.73,136.68,16.78323522]
[1767889057923,9.50105404,136.74,136.69,9.46700368]
[1767889058128,16.81421706,136.74,136.69,9.46700368]
[1767889058729,9.50105404,136.74,136.7,0.67474368]
[1767889059097,16.81440302,136.74,136.7,0.67474368]
[1767889059299,16.81440302,136.74,136.69,9.46700368]
[1767889059836,8.79226,136.73,136.69,7.9905486]
[1767889060201,9.50105404,136.74,136.69,16.7828086]
[1767889060410,43.43405586,136.79,136.69,16.7828086]
[1767889060411,0.70879404,136.78,136.73,9.46700368]
[1767889060629,14.31052629,136.77,136.72,8.79226]
[1767889060828,9.50105404,136.77,136.71,0.67474368]
[1767889061122,9.50105404,136.77,136.72,8.79226]
[1767889061499,9.50105404,136.76,136.72,7.31421884]
[1767889061905,9.50105404,136.76,136.72,16.10647884]
[1767889062920,9.50105404,136.76,136.72,16.78122252]